[Event "29. Klatovy A 2023"]
[Site "Klatovy"]
[Date "2023.07.04"]
[Round "4.9"]
[White "Zadrapa, Radek"]
[Black "Soural, Jan"]
[Result "0-1"]
[ECO "B30"]
[WhiteElo "2014"]
[BlackElo "2176"]
[PlyCount "124"]
[EventDate "2023.07.01"]
[EventType "swiss"]
[EventRounds "9"]
[EventCountry "CZE"]
[TimeControl "120+30"]

1. e4 {[%emt 0:00:03]} c5 {[%emt 0:00:09]} 2. Nf3 {[%emt 0:00:04]} g6 {[%emt 0:00:05]} 3. Nc3 {[%emt 0:00:56]} Bg7 {[%emt 0:00:12]} 4. Bc4 {[%emt 0:02:43]} Nc6 {[%emt 0:03:11]} 5. O-O {[%emt 0:00:44]} d6 {[%emt 0:03:20]} 6. d3 {[%emt 0:01:04]} Nf6 {[%emt 0:04:11]} 7. h3 {[%emt 0:00:08]} O-O {[%emt 0:02:03]} 8. Bg5 {[%emt 0:07:54]} h6 {[%emt 0:10:14]} 9. Be3 {[%emt 0:04:00]} Na5 {[%emt 0:03:24]} 10. Qd2 {[%emt 0:07:43]} Kh7 {[%emt 0:00:54]} 11. Rad1 {[%emt 0:00:18]} b6 {[%emt 0:14:07]} 12. e5 {[%emt 0:12:30]} dxe5 {[%emt 0:00:11]} 13. Nxe5 {[%emt 0:01:40]} e6 {[%emt 0:00:12]} 14. Qe2 {[%emt 0:11:55]} Bb7 {[%emt 0:04:18]} 15. d4 {[%emt 0:08:08]} Nxc4 {[%emt 0:03:58]} 16. dxc5 {[%emt 0:02:59]} Nxe5 {[%emt 0:07:26]} 17. Rxd8 {[%emt 0:01:58]} Rfxd8 {[%emt 0:00:08]} 18. cxb6 {[%emt 0:00:29]} axb6 {[%emt 0:13:56]} 19. Bxb6 {[%emt 0:01:58]} Rd5 {[%emt 0:02:25]} 20. Nxd5 {[%emt 0:03:25]} Nxd5 {[%emt 0:00:07]} 21. Bd4 {[%emt 0:15:39]} Ba6 {[%emt 0:01:47]} 22. Qd1 {[%emt 0:00:47]} Bxf1 {[%emt 0:01:55]} 23. Kxf1 {[%emt 0:00:08]} Rxa2 {[%emt 0:02:40]} 24. g3 {[%emt 0:07:56]} Ra8 {[%emt 0:09:41]} 25. b3 {[%emt 0:06:41]} Nc6 {[%emt 0:06:29]} 26. Bxg7 {[%emt 0:03:00]} Kxg7 {[%emt 0:00:06]} 27. Qb1 {[%emt 0:01:21]} Ncb4 {[%emt 0:10:26]} 28. Qb2+ {[%emt 0:02:16]} Kh7 {[%emt 0:04:59]} 29. c4 {[%emt 0:07:18]} Nd3 {[%emt 0:01:10]} 30. Qd4 {[%emt 0:03:05]} N5b4 {[%emt 0:00:37]} 31. f4 {[%emt 0:01:19]} h5 {[%emt 0:03:37]} 32. Qf6 {[%emt 0:03:02]} Kg8 {[%emt 0:00:58]} 33. Kg2 {[%emt 0:01:49]} Ra2+ {[%emt 0:04:38]} 34. Kf3 {[%emt 0:00:37]} Nc6 {[%emt 0:00:48]} 35. Ke3 {[%emt 0:03:23]} Ndb4 {[%emt 0:01:32]} 36. Kf3 {[%emt 0:01:29]} Rd2 {[%emt 0:00:48]} 37. g4 {[%emt 0:02:29]} Rd3+ {[%emt 0:00:57]} 38. Kg2 {[%emt 0:00:05]} hxg4 {[%emt 0:00:16]} 39. hxg4 {[%emt 0:00:04]} Rxb3 {[%emt 0:00:16]} 40. Qa1 {[%emt 0:01:08]} Rd3 {[%emt 0:00:29]} 41. Qa8+ {[%emt 0:01:28]} Rd8 {[%emt 0:00:18]} 42. Qa4 {[%emt 0:00:48]} Rd4 {[%emt 0:00:47]} 43. Kg3 {[%emt 0:00:25]} Rxc4 {[%emt 0:01:07]} 44. Qa8+ {[%emt 0:00:12]} Kg7 {[%emt 0:00:50]} 45. Qa1+ {[%emt 0:00:09]} Rd4 {[%emt 0:00:52]} 46. g5 {[%emt 0:00:53]} Nd5 {[%emt 0:01:22]} 47. Qc1 {[%emt 0:02:17]} Nce7 {[%emt 0:01:35]} 48. Qa1 {[%emt 0:00:15]} Nf5+ {[%emt 0:00:07]} 49. Kf3 {[%emt 0:00:33]} Nxf4 {[%emt 0:00:43]} 50. Qa7 {[%emt 0:00:36]} Nh3 {[%emt 0:01:36]} 51. Qa1 {[%emt 0:00:59]} Nxg5+ {[%emt 0:00:09]} 52. Ke2 {[%emt 0:00:16]} Ne4 {[%emt 0:00:35]} 53. Kf3 {[%emt 0:00:25]} g5 {[%emt 0:00:25]} 54. Qa5 {[%emt 0:00:11]} Kg6 {[%emt 0:00:36]} 55. Qa8 {[%emt 0:00:10]} Nf6 {[%emt 0:00:20]} 56. Qb7 {[%emt 0:00:47]} Rd3+ {[%emt 0:00:22]} 57. Kf2 {[%emt 0:00:23]} g4 {[%emt 0:00:24]} 58. Qb1 {[%emt 0:00:33]} Rd2+ {[%emt 0:00:21]} 59. Kg1 {[%emt 0:00:15]} g3 {[%emt 0:00:36]} 60. Qc1 {[%emt 0:00:31]} Rf2 {[%emt 0:01:16]} 61. Qc7 {[%emt 0:00:44]} Ne4 {[%emt 0:01:38]} 62. Qb7 {[%emt 0:01:17]} Ng5 {[%emt 0:00:20]} 0-1

[Event "29. Klatovy A 2023"]
[Site "Klatovy"]
[Date "2023.07.04"]
[Round "4.10"]
[White "Skypala, Ondrej"]
[Black "Stary, Vojtech"]
[Result "1-0"]
[ECO "A36"]
[WhiteElo "2163"]
[BlackElo "1822"]
[PlyCount "129"]
[EventDate "2023.07.01"]
[EventType "swiss"]
[EventRounds "9"]
[EventCountry "CZE"]
[TimeControl "120+30"]

1. e4 {[%emt 0:00:17]} c5 {[%emt 0:00:22]} 2. c4 {[%emt 0:00:22]} Nc6 {[%emt 0:00:20]} 3. Nc3 {[%emt 0:00:08]} g6 {[%emt 0:00:54]} 4. g3 {[%emt 0:00:08]} Bg7 {[%emt 0:00:17]} 5. Bg2 {[%emt 0:00:08]} d6 {[%emt 0:01:17]} 6. Nge2 {[%emt 0:00:09]} e5 {[%emt 0:02:07]} 7. d3 {[%emt 0:00:09]} Nge7 {[%emt 0:01:00]} 8. Rb1 {[%emt 0:00:42]} O-O {[%emt 0:01:29]} 9. h4 {[%emt 0:00:11]} h6 {[%emt 0:04:49]} 10. Be3 {[%emt 0:02:20]} Nd4 {[%emt 0:06:27]} 11. O-O {[%emt 0:01:13]} f5 {[%emt 0:02:19]} 12. Qd2 {[%emt 0:01:21]} Kh7 {[%emt 0:02:02]} 13. b4 {[%emt 0:02:37]} Nec6 {[%emt 0:02:23]} 14. Nd5 {[%emt 0:03:10]} Rb8 {[%emt 0:07:05]} 15. f4 {[%emt 0:03:11]} Be6 {[%emt 0:08:55]} 16. fxe5 {[%emt 0:00:00]} Nxe2+ {[%emt 0:00:00]} 17. Qxe2 {[%emt 0:00:00]} Bxe5 {[%emt 0:04:50]} 18. Nf4 {[%emt 0:00:52]} Nd4 {[%emt 0:02:31]} 19. Bxd4 {[%emt 0:04:33]} Bxd4+ {[%emt 0:00:22]} 20. Kh2 {[%emt 0:00:43]} Qd7 {[%emt 0:05:47]} 21. h5 {[%emt 0:00:17]} g5 {[%emt 0:02:12]} 22. Ng6 {[%emt 0:01:28]} Rfe8 {[%emt 0:02:05]} 23. Bh3 {[%emt 0:04:44]} f4 {[%emt 0:02:07]} 24. Bxe6 {[%emt 0:01:05]} fxg3+ {[%emt 0:00:32]} 25. Kxg3 {[%emt 0:00:15]} Qxe6 {[%emt 0:00:52]} 26. Qg4 {[%emt 0:01:44]} Be5+ {[%emt 0:01:41]} 27. Kh3 {[%emt 0:00:24]} Kg7 {[%emt 0:03:04]} 28. Rf5 {[%emt 0:01:07]} b6 {[%emt 0:01:52]} 29. Rbf1 {[%emt 0:01:38]} Rb7 {[%emt 0:01:53]} 30. Kg2 {[%emt 0:00:58]} cxb4 {[%emt 0:03:57]} 31. Qf3 {[%emt 0:03:31]} Bf4 {[%emt 0:04:32]} 32. Nxf4 {[%emt 0:00:19]} gxf4 {[%emt 0:00:16]} 33. Qxf4 {[%emt 0:00:06]} Rg8 {[%emt 0:02:28]} 34. Rf6 {[%emt 0:03:25]} Kh8+ {[%emt 0:02:49]} 35. Kf3 {[%emt 0:21:16]} Qh3+ {[%emt 0:01:05]} 36. Ke2 {[%emt 0:01:24]} Qxh5+ {[%emt 0:02:49]} 37. Ke3 {[%emt 0:00:10]} Rh7 {[%emt 0:01:58]} 38. Rxd6 {[%emt 0:00:41]} Qg5 {[%emt 0:01:40]} 39. e5 {[%emt 0:00:40]} Qxf4+ {[%emt 0:02:06]} 40. Rxf4 {[%emt 0:00:08]} h5 {[%emt 0:00:49]} 41. Rh4 {[%emt 0:00:31]} Rg2 {[%emt 0:04:35]} 42. e6 {[%emt 0:00:53]} Rg5 {[%emt 0:09:15]} 43. d4 {[%emt 0:01:24]} a5 {[%emt 0:02:45]} 44. Rxb6 {[%emt 0:00:18]} Re7 {[%emt 0:00:44]} 45. d5 {[%emt 0:00:15]} Kg7 {[%emt 0:00:24]} 46. Rd6 {[%emt 0:00:26]} Kf6 {[%emt 0:00:51]} 47. Ra6 {[%emt 0:02:11]} Rg3+ {[%emt 0:00:33]} 48. Kf2 {[%emt 0:03:43]} Ra3 {[%emt 0:00:21]} 49. Rxh5 {[%emt 0:01:42]} Rxa2+ {[%emt 0:00:14]} 50. Ke3 {[%emt 0:00:06]} b3 {[%emt 0:00:54]} 51. Rb6 {[%emt 0:00:50]} a4 {[%emt 0:02:06]} 52. Kd4 {[%emt 0:01:03]} Rd2+ {[%emt 0:04:55]} 53. Kc5 {[%emt 0:01:05]} b2 {[%emt 0:02:19]} 54. Rh3 {[%emt 0:00:50]} Rc7+ {[%emt 0:01:57]} 55. Kd6 {[%emt 0:00:08]} Rxc4 {[%emt 0:00:47]} 56. e7 {[%emt 0:00:11]} Re4 {[%emt 0:01:22]} 57. Kd7+ {[%emt 0:00:45]} Kf5 {[%emt 0:01:48]} 58. d6 {[%emt 0:06:39]} Rxd6+ {[%emt 0:06:37]} 59. Kxd6 {[%emt 0:00:55]} Re6+ {[%emt 0:00:11]} 60. Kd5 {[%emt 0:00:55]} Rxb6 {[%emt 0:00:17]} 61. e8=Q {[%emt 0:00:33]} b1=Q {[%emt 0:00:24]} 62. Qe5+ {[%emt 0:01:08]} Kg6 {[%emt 0:01:00]} 63. Rg3+ {[%emt 0:00:08]} Kf7 {[%emt 0:00:37]} 64. Rg7+ {[%emt 0:00:06]} Kf8 {[%emt 0:00:11]} 65. Qe7# {[%emt 0:00:03]} 1-0

[Event "29. Klatovy A 2023"]
[Site "Klatovy"]
[Date "2023.07.04"]
[Round "4.11"]
[White "Polak, Michal 2002"]
[Black "Kupsa, Matej 2001"]
[Result "1/2-1/2"]
[ECO "B04"]
[WhiteElo "1959"]
[BlackElo "2145"]
[PlyCount "199"]
[EventDate "2023.07.01"]
[EventType "swiss"]
[EventRounds "9"]
[EventCountry "CZE"]
[TimeControl "120+30"]

1. e4 {[%emt 0:00:02]} Nf6 {[%emt 0:02:05]} 2. e5 {[%emt 0:01:44]} Nd5 {[%emt 0:00:10]} 3. d4 {[%emt 0:00:05]} d6 {[%emt 0:00:04]} 4. Nf3 {[%emt 0:00:40]} dxe5 {[%emt 0:00:22]} 5. dxe5 {[%emt 0:01:06]} Nc6 {[%emt 0:05:05]} 6. Bc4 {[%emt 0:05:16]} Nb6 {[%emt 0:17:25]} 7. Qxd8+ {[%emt 0:00:10]} Nxd8 {[%emt 0:00:03]} 8. Bb3 {[%emt 0:00:08]} Nc6 {[%emt 0:01:39]} 9. Be3 {[%emt 0:18:17]} Bg4 {[%emt 0:03:21]} 10. Nbd2 {[%emt 0:02:40]} e6 {[%emt 0:06:52]} 11. h3 {[%emt 0:02:57]} Bh5 {[%emt 0:10:54]} 12. O-O {[%emt 0:01:57]} O-O-O {[%emt 0:08:57]} 13. Rfe1 {[%emt 0:10:47]} Be7 {[%emt 0:13:31]} 14. c3 {[%emt 0:07:39]} Nd5 {[%emt 0:07:20]} 15. Bc2 {[%emt 0:08:41]} Nxe3 {[%emt 0:01:01]} 16. Rxe3 {[%emt 0:00:06]} Bg6 {[%emt 0:16:12]} 17. Bxg6 {[%emt 0:04:07]} hxg6 {[%emt 0:00:01]} 18. Nb3 {[%emt 0:02:27]} Rd7 {[%emt 0:00:13]} 19. Kf1 {[%emt 0:01:58]} Rhd8 {[%emt 0:00:32]} 20. Ke2 {[%emt 0:01:10]} Rd5 {[%emt 0:04:20]} 21. Rc1 {[%emt 0:09:35]} Na5 {[%emt 0:08:27]} 22. Re4 {[%emt 0:05:33]} Nxb3 {[%emt 0:01:14]} 23. axb3 {[%emt 0:00:02]} Rb5 {[%emt 0:01:10]} 24. Nd2 {[%emt 0:10:24]} Ra5 {[%emt 0:01:58]} 25. Rb1 {[%emt 0:09:48]} b5 {[%emt 0:04:07]} 26. Nf3 {[%emt 0:02:58]} c6 {[%emt 0:06:22]} 27. Rf4 {[%emt 0:04:12]} Rf8 {[%emt 0:00:15]} 28. Rd1 {[%emt 0:01:28]} Ra2 {[%emt 0:00:23]} 29. Rd2 {[%emt 0:00:09]} a5 {[%emt 0:01:13]} 30. Kd1 {[%emt 0:10:15]} Kc7 {[%emt 0:00:01]} 31. Kc2 {[%emt 0:00:32]} Ra1 {[%emt 0:00:23]} 32. Rd1 {[%emt 0:00:34]} Rxd1 {[%emt 0:00:57]} 33. Kxd1 {[%emt 0:00:01]} g5 {[%emt 0:01:53]} 34. Re4 {[%emt 0:01:31]} Rd8+ {[%emt 0:00:22]} 35. Ke2 {[%emt 0:00:20]} Kb6 {[%emt 0:00:36]} 36. Rg4 {[%emt 0:01:16]} f6 {[%emt 0:00:49]} 37. Rd4 {[%emt 0:00:17]} Rd5 {[%emt 0:02:28]} 38. c4 {[%emt 0:05:37]} Rxd4 {[%emt 0:01:23]} 39. Nxd4 {[%emt 0:00:01]} Kc5 {[%emt 0:02:13]} 40. Kd3 {[%emt 0:00:22]} fxe5 {[%emt 0:00:45]} 41. Nxe6+ {[%emt 0:00:15]} Kb4 {[%emt 0:00:17]} 42. cxb5 {[%emt 0:00:39]} cxb5 {[%emt 0:00:31]} 43. Kc2 {[%emt 0:00:29]} e4 {[%emt 0:00:45]} 44. Nd4 {[%emt 0:03:18]} Bf6 {[%emt 0:01:29]} 45. Nc6+ {[%emt 0:00:54]} Kc5 {[%emt 0:00:01]} 46. Nxa5 {[%emt 0:00:09]} Bd4 {[%emt 0:01:33]} 47. b4+ {[%emt 0:00:46]} Kd5 {[%emt 0:00:37]} 48. f3 {[%emt 0:00:27]} e3 {[%emt 0:00:12]} 49. Kd3 {[%emt 0:00:34]} Bxb2 {[%emt 0:00:27]} 50. Kxe3 {[%emt 0:00:21]} Bc3 {[%emt 0:00:15]} 51. Kd3 {[%emt 0:00:28]} Bxb4 {[%emt 0:00:08]} 52. Nb3 {[%emt 0:00:10]} Be7 {[%emt 0:01:27]} 53. g3 {[%emt 0:00:48]} Bd6 {[%emt 0:00:58]} 54. h4 {[%emt 0:00:19]} gxh4 {[%emt 0:00:22]} 55. gxh4 {[%emt 0:00:03]} g6 {[%emt 0:00:18]} 56. Kc3 {[%emt 0:01:28]} b4+ {[%emt 0:00:42]} 57. Kd3 {[%emt 0:00:19]} Be7 {[%emt 0:00:38]} 58. Nc1 {[%emt 0:00:38]} Bxh4 {[%emt 0:00:16]} 59. Ne2 {[%emt 0:00:18]} Bg5 {[%emt 0:00:21]} 60. Ng3 {[%emt 0:00:30]} Bf6 {[%emt 0:00:50]} 61. Ne2 {[%emt 0:00:44]} Be5 {[%emt 0:00:12]} 62. Nc1 {[%emt 0:00:21]} Bc7 {[%emt 0:01:06]} 63. Ne2 {[%emt 0:00:22]} Bd6 {[%emt 0:00:11]} 64. Nc1 {[%emt 0:00:23]} Be5 {[%emt 0:00:05]} 65. Nb3 {[%emt 0:00:19]} Bc3 {[%emt 0:00:42]} 66. Nc1 {[%emt 0:00:11]} Ke5 {[%emt 0:00:56]} 67. Ne2 {[%emt 0:00:21]} Be1 {[%emt 0:00:24]} 68. Kc4 {[%emt 0:00:39]} Kf5 {[%emt 0:00:19]} 69. Kd3 {[%emt 0:00:26]} Bc3 {[%emt 0:00:22]} 70. Nc1 {[%emt 0:00:42]} Kf4 {[%emt 0:00:26]} 71. Ke2 {[%emt 0:00:04]} Ke5 {[%emt 0:00:46]} 72. Kd3 {[%emt 0:00:04]} Kd5 {[%emt 0:00:11]} 73. Ne2 {[%emt 0:00:13]} Be5 {[%emt 0:00:09]} 74. Nc1 {[%emt 0:00:10]} g5 {[%emt 0:00:48]} 75. Nb3 {[%emt 0:00:10]} Bb2 {[%emt 0:00:25]} 76. Nd2 {[%emt 0:00:54]} Bf6 {[%emt 0:00:36]} 77. Nb3 {[%emt 0:00:08]} Be7 {[%emt 0:00:13]} 78. Nc1 {[%emt 0:00:22]} Kc5 {[%emt 0:00:20]} 79. Nb3+ {[%emt 0:00:23]} Kb5 {[%emt 0:00:06]} 80. Nd4+ {[%emt 0:00:56]} Ka4 {[%emt 0:00:14]} 81. Kc4 {[%emt 0:00:05]} Ka3 {[%emt 0:00:39]} 82. Nc2+ {[%emt 0:00:08]} Ka4 {[%emt 0:00:45]} 83. Nd4 {[%emt 0:00:02]} Bf6 {[%emt 0:00:22]} 84. Nb3 {[%emt 0:00:07]} Bc3 {[%emt 0:00:43]} 85. Nc5+ {[%emt 0:00:16]} Ka3 {[%emt 0:00:12]} 86. Nd3 {[%emt 0:01:02]} Bd2 {[%emt 0:00:49]} 87. Nc5 {[%emt 0:00:16]} Be1 {[%emt 0:00:48]} 88. Nb3 {[%emt 0:00:42]} Kb2 {[%emt 0:00:24]} 89. Nd4 {[%emt 0:00:57]} Bc3 {[%emt 0:00:49]} 90. Ne6 {[%emt 0:00:28]} Kc2 {[%emt 0:00:15]} 91. Nc5 {[%emt 0:02:13]} Be1 {[%emt 0:00:43]} 92. Nd3 {[%emt 0:00:58]} Bd2 {[%emt 0:00:38]} 93. Nc5 {[%emt 0:00:16]} Bc3 {[%emt 0:00:29]} 94. Ne4 {[%emt 0:00:27]} Be1 {[%emt 0:00:41]} 95. Nc5 {[%emt 0:00:43]} Kd2 {[%emt 0:00:33]} 96. Ne4+ {[%emt 0:00:30]} Kc1 {[%emt 0:00:26]} 97. Nxg5 {[%emt 0:01:18]} Kc2 {[%emt 0:00:22]} 98. Ne6 {[%emt 0:00:05]} Bf2 {[%emt 0:00:19]} 99. Kxb4 {[%emt 0:00:10]} Kd3 {[%emt 0:00:13]} 100. f4 {[%emt 0:00:49]} 1/2-1/2

[Event "29. Klatovy A 2023"]
[Site "Klatovy"]
[Date "2023.07.04"]
[Round "4.12"]
[White "Kopta, Pavel"]
[Black "Folkova, Martina"]
[Result "1/2-1/2"]
[ECO "D59"]
[WhiteElo "2209"]
[BlackElo "2049"]
[PlyCount "65"]
[EventDate "2023.07.01"]
[EventType "swiss"]
[EventRounds "9"]
[EventCountry "CZE"]
[TimeControl "120+30"]

1. d4 {[%emt 0:00:03]} d5 {[%emt 0:06:34]} 2. c4 {[%emt 0:01:35]} e6 {[%emt 0:00:04]} 3. Nc3 {[%emt 0:00:06]} Nf6 {[%emt 0:00:25]} 4. Bg5 {[%emt 0:00:41]} Be7 {[%emt 0:00:11]} 5. e3 {[%emt 0:00:34]} h6 {[%emt 0:00:41]} 6. Bh4 {[%emt 0:01:11]} O-O {[%emt 0:00:24]} 7. Nf3 {[%emt 0:01:51]} b6 {[%emt 0:02:07]} 8. Rc1 {[%emt 0:01:01]} Bb7 {[%emt 0:02:01]} 9. cxd5 {[%emt 0:02:51]} Nxd5 {[%emt 0:01:35]} 10. Bxe7 {[%emt 0:00:31]} Qxe7 {[%emt 0:00:36]} 11. Bc4 {[%emt 0:04:23]} Nf6 {[%emt 0:13:43]} 12. O-O {[%emt 0:02:46]} Nbd7 {[%emt 0:02:05]} 13. Qe2 {[%emt 0:03:08]} c5 {[%emt 0:06:22]} 14. Rfd1 {[%emt 0:03:43]} Rfd8 {[%emt 0:05:40]} 15. Ba6 {[%emt 0:02:38]} Bxa6 {[%emt 0:09:43]} 16. Qxa6 {[%emt 0:00:38]} cxd4 {[%emt 0:00:57]} 17. Nxd4 {[%emt 0:04:20]} Nc5 {[%emt 0:03:18]} 18. Qe2 {[%emt 0:03:45]} a5 {[%emt 0:05:18]} 19. Qf3 {[%emt 0:05:22]} Rac8 {[%emt 0:05:39]} 20. h3 {[%emt 0:05:00]} e5 {[%emt 0:10:20]} 21. Nf5 {[%emt 0:03:30]} Qe6 {[%emt 0:01:34]} 22. e4 {[%emt 0:01:27]} Kh7 {[%emt 0:00:51]} 23. Ng3 {[%emt 0:11:26]} g6 {[%emt 0:01:14]} 24. Nd5 {[%emt 0:05:07]} Kg7 {[%emt 0:03:49]} 25. Nxf6 {[%emt 0:04:01]} Qxf6 {[%emt 0:00:09]} 26. Qg4 {[%emt 0:01:29]} Qg5 {[%emt 0:05:56]} 27. Qxg5 {[%emt 0:02:47]} hxg5 {[%emt 0:00:02]} 28. Kf1 {[%emt 0:00:41]} Kf6 {[%emt 0:01:10]} 29. f3 {[%emt 0:05:52]} Ke7 {[%emt 0:03:00]} 30. Ne2 {[%emt 0:03:36]} Rxd1+ {[%emt 0:02:39]} 31. Rxd1 {[%emt 0:01:06]} Rd8 {[%emt 0:00:01]} 32. Rxd8 {[%emt 0:01:13]} Kxd8 {[%emt 0:00:00]} 33. Nc3 {[%emt 0:05:41]} 1/2-1/2

[Event "29. Klatovy A 2023"]
[Site "Klatovy"]
[Date "2023.07.04"]
[Round "4.13"]
[White "Flajsman, Petr"]
[Black "Formanek, Martin"]
[Result "1-0"]
[ECO "E60"]
[WhiteElo "1956"]
[BlackElo "2206"]
[PlyCount "67"]
[EventDate "2023.07.01"]
[EventType "swiss"]
[EventRounds "9"]
[EventCountry "CZE"]
[TimeControl "120+30"]

1. d4 {[%emt 19:15:38]} Nf6 {[%emt 0:00:10]} 2. Nf3 {[%emt 0:00:39]} g6 {[%emt 0:00:15]} 3. b3 {[%emt 0:02:01]} Bg7 {[%emt 0:00:58]} 4. Bb2 {[%emt 0:00:15]} O-O {[%emt 0:00:55]} 5. c4 {[%emt 0:03:41]} d6 {[%emt 0:08:08]} 6. e3 {[%emt 0:04:53]} Nbd7 {[%emt 0:07:52]} 7. Be2 {[%emt 0:10:30]} c6 {[%emt 0:03:51]} 8. Qc2 {[%emt 0:01:21]} Re8 {[%emt 0:02:10]} 9. Nc3 {[%emt 0:00:23]} e5 {[%emt 0:01:34]} 10. O-O-O {[%emt 0:03:33]} a6 {[%emt 0:15:06]} 11. dxe5 {[%emt 0:33:14]} dxe5 {[%emt 0:03:08]} 12. Ng5 {[%emt 0:01:39]} Qa5 {[%emt 0:25:54]} 13. a3 {[%emt 0:01:11]} Nf8 {[%emt 0:02:11]} 14. Bd3 {[%emt 0:09:36]} b5 {[%emt 0:22:22]} 15. b4 {[%emt 0:02:03]} Qb6 {[%emt 0:03:15]} 16. c5 {[%emt 0:00:55]} Qc7 {[%emt 0:01:05]} 17. Nge4 {[%emt 0:01:01]} Be6 {[%emt 0:08:37]} 18. Nxf6+ {[%emt 0:02:58]} Bxf6 {[%emt 0:00:04]} 19. Ne4 {[%emt 0:00:52]} Bg7 {[%emt 0:00:08]} 20. Nd6 {[%emt 0:00:57]} Red8 {[%emt 0:01:10]} 21. e4 {[%emt 0:02:49]} a5 {[%emt 0:01:02]} 22. Bc3 {[%emt 0:00:34]} axb4 {[%emt 0:00:17]} 23. Bxb4 {[%emt 0:00:09]} Ra4 {[%emt 0:00:59]} 24. Qb2 {[%emt 0:01:49]} Rda8 {[%emt 0:01:06]} 25. Bc2 {[%emt 0:03:02]} R4a6 {[%emt 0:00:27]} 26. Rd3 {[%emt 0:01:01]} Bc4 {[%emt 0:03:20]} 27. Rf3 {[%emt 0:00:23]} Qe7 {[%emt 0:01:24]} 28. Bb3 {[%emt 0:00:46]} Qg5+ {[%emt 0:00:40]} 29. Kc2 {[%emt 0:15:31]} Qxg2 {[%emt 0:01:39]} 30. Rxf7 {[%emt 0:00:17]} Qxh1 {[%emt 0:01:51]} 31. Rxg7+ {[%emt 0:00:24]} Kxg7 {[%emt 0:00:16]} 32. Qxe5+ {[%emt 0:00:08]} Kg8 {[%emt 0:01:16]} 33. Bxc4+ {[%emt 0:00:03]} bxc4 {[%emt 0:00:08]} 34. Bc3 {[%emt 0:00:06]} 1-0

[Event "29. Klatovy A 2023"]
[Site "Klatovy"]
[Date "2023.07.04"]
[Round "4.14"]
[White "Munk, Petr"]
[Black "Stary, Lukas"]
[Result "1-0"]
[ECO "E92"]
[WhiteElo "2096"]
[BlackElo "1921"]
[PlyCount "71"]
[EventDate "2023.07.01"]
[EventType "swiss"]
[EventRounds "9"]
[EventCountry "CZE"]
[TimeControl "120+30"]

1. e4 {[%emt 0:00:24]} g6 {[%emt 0:00:14]} 2. c4 {[%emt 0:01:53]} d6 {[%emt 0:04:00]} 3. d4 {[%emt 0:00:15]} Bg7 {[%emt 0:00:55]} 4. Nf3 {[%emt 0:02:16]} Nf6 {[%emt 0:01:10]} 5. Nc3 {[%emt 0:00:07]} O-O {[%emt 0:00:12]} 6. Be2 {[%emt 0:01:28]} e5 {[%emt 0:00:04]} 7. d5 {[%emt 0:02:29]} a5 {[%emt 0:00:25]} 8. Be3 {[%emt 0:00:07]} Na6 {[%emt 0:01:36]} 9. Nd2 {[%emt 0:00:20]} Ne8 {[%emt 0:02:39]} 10. O-O {[%emt 0:00:39]} f5 {[%emt 0:00:16]} 11. f3 {[%emt 0:00:44]} f4 {[%emt 0:00:11]} 12. Bf2 {[%emt 0:00:02]} g5 {[%emt 0:01:25]} 13. a3 {[%emt 0:01:56]} Bd7 {[%emt 0:11:27]} 14. Rb1 {[%emt 0:03:31]} Nf6 {[%emt 0:00:57]} 15. b4 {[%emt 0:00:21]} axb4 {[%emt 0:00:42]} 16. axb4 {[%emt 0:00:02]} Rf7 {[%emt 0:01:34]} 17. c5 {[%emt 0:03:56]} Bf8 {[%emt 0:10:25]} 18. c6 {[%emt 0:09:24]} Bc8 {[%emt 0:04:47]} 19. Ra1 {[%emt 0:20:30]} g4 {[%emt 0:16:59]} 20. fxg4 {[%emt 0:00:57]} b5 {[%emt 0:08:30]} 21. h3 {[%emt 0:12:20]} Rg7 {[%emt 0:02:41]} 22. Bxb5 {[%emt 0:09:26]} h5 {[%emt 0:01:08]} 23. Be2 {[%emt 0:02:32]} hxg4 {[%emt 0:00:28]} 24. hxg4 {[%emt 0:00:20]} Bxg4 {[%emt 0:00:52]} 25. Bh4 {[%emt 0:07:36]} Nxe4 {[%emt 0:22:44]} 26. Bxd8 {[%emt 0:08:35]} Nxc3 {[%emt 0:00:20]} 27. Bxg4 {[%emt 0:00:23]} Nxd1 {[%emt 0:01:21]} 28. Be6+ {[%emt 0:00:01]} Kh7 {[%emt 0:00:59]} 29. Rfxd1 {[%emt 0:00:12]} Rxd8 {[%emt 0:01:10]} 30. Rxa6 {[%emt 0:00:06]} Rb8 {[%emt 0:00:53]} 31. Rb1 {[%emt 0:00:25]} Be7 {[%emt 0:00:25]} 32. b5 {[%emt 0:06:37]} Bd8 {[%emt 0:02:22]} 33. Bf5+ {[%emt 0:00:35]} Kh6 {[%emt 0:00:16]} 34. Be4 {[%emt 0:00:09]} Rg3 {[%emt 0:00:47]} 35. Bf3 {[%emt 0:00:12]} Kg7 {[%emt 0:00:54]} 36. Ra7 {[%emt 0:00:00]} 1-0

[Event "29. Klatovy A 2023"]
[Site "Klatovy"]
[Date "2023.07.04"]
[Round "4.15"]
[White "Sedmihradsky, Tomas"]
[Black "Palek, Miroslav"]
[Result "0-1"]
[ECO "A44"]
[WhiteElo "1775"]
[BlackElo "2091"]
[PlyCount "78"]
[EventDate "2023.07.01"]
[EventType "swiss"]
[EventRounds "9"]
[EventCountry "CZE"]
[TimeControl "120+30"]

1. d4 {[%emt 0:00:11]} c5 {[%emt 0:01:32]} 2. d5 {[%emt 0:00:00]} e5 {[%emt 0:00:14]} 3. c4 {[%emt 0:00:28]} d6 {[%emt 0:00:15]} 4. Nc3 {[%emt 0:00:11]} Be7 {[%emt 0:00:55]} 5. e4 {[%emt 0:00:13]} Bg5 {[%emt 0:01:18]} 6. Bxg5 {[%emt 0:01:02]} Qxg5 {[%emt 0:00:09]} 7. Nf3 {[%emt 0:00:26]} Qd8 {[%emt 0:01:01]} 8. Qa4+ {[%emt 0:01:55]} Bd7 {[%emt 0:02:43]} 9. Qb3 {[%emt 0:01:31]} b6 {[%emt 0:01:54]} 10. Nb5 {[%emt 0:04:49]} Bxb5 {[%emt 0:03:41]} 11. Qxb5+ {[%emt 0:01:21]} Qd7 {[%emt 0:00:12]} 12. Qb3 {[%emt 0:00:33]} Na6 {[%emt 0:00:56]} 13. O-O-O {[%emt 0:03:20]} Nf6 {[%emt 0:01:37]} 14. Re1 {[%emt 0:04:20]} O-O {[%emt 0:03:52]} 15. g3 {[%emt 0:05:23]} Rfb8 {[%emt 0:00:49]} 16. a4 {[%emt 0:21:07]} Nc7 {[%emt 0:01:25]} 17. Kd2 {[%emt 0:20:57]} a6 {[%emt 0:00:20]} 18. Qc2 {[%emt 0:01:20]} b5 {[%emt 0:00:38]} 19. Ra1 {[%emt 0:00:15]} bxa4 {[%emt 0:02:54]} 20. Bd3 {[%emt 0:02:05]} Rb4 {[%emt 0:06:41]} 21. Rhb1 {[%emt 0:01:53]} Rab8 {[%emt 0:05:31]} 22. Nh4 {[%emt 0:01:46]} g6 {[%emt 0:06:56]} 23. Ra2 {[%emt 0:06:02]} Qh3 {[%emt 0:28:25]} 24. Bf1 {[%emt 0:09:25]} Qd7 {[%emt 0:04:29]} 25. Ra3 {[%emt 0:04:36]} Nfe8 {[%emt 0:04:23]} 26. Kc1 {[%emt 0:07:52]} Ng7 {[%emt 0:02:10]} 27. Qe2 {[%emt 0:02:18]} Nce8 {[%emt 0:01:03]} 28. f4 {[%emt 0:03:17]} Qe7 {[%emt 0:07:57]} 29. Ng2 {[%emt 0:05:40]} Nf6 {[%emt 0:03:00]} 30. Ne1 {[%emt 0:10:12]} exf4 {[%emt 0:01:26]} 31. Nc2 {[%emt 0:00:13]} Rb3 {[%emt 0:03:07]} 32. gxf4 {[%emt 0:01:26]} Qxe4 {[%emt 0:01:42]} 33. Qxe4 {[%emt 0:00:36]} Nxe4 {[%emt 0:00:08]} 34. Rxa4 {[%emt 0:00:18]} Nc3 {[%emt 0:00:18]} 35. Rxa6 {[%emt 0:01:26]} Nxb1 {[%emt 0:00:09]} 36. Rxd6 {[%emt 0:00:27]} Rxb2 {[%emt 0:01:03]} 37. Bh3 {[%emt 0:00:36]} Nc3 {[%emt 0:00:44]} 38. Rc6 {[%emt 0:00:57]} Ne4 {[%emt 0:00:53]} 39. Na3 {[%emt 0:00:25]} Rxh2 {[%emt 0:01:43]} 0-1